bitfinex/quotes_SOLUSD_20250814
["timestamp","ask_amount","ask_price","bid_price","bid_amount"]
[1755196052202,13.19800247,193.3,193.24,0.03]
[1755196052375,13.90800247,193.29,193.24,0.03]
[1755196052580,0.71,193.28,193.24,0.03]
[1755196052879,5.17303812,193.31,193.24,0.75]
[1755196053079,13.90800247,193.36,193.29,13.19800247]
[1755196053284,5.1722181,193.35,193.31,13.19800247]
[1755196053596,0.71,193.39,193.33,13.19800247]
[1755196053806,0.71,193.4,193.35,13.19800247]
[1755196054103,0.71,193.39,193.34,13.19800247]
[1755196054525,13.19800247,193.4,193.31,26.0]
[1755196054802,0.71,193.38,193.33,13.19800247]
[1755196055011,0.71,193.38,193.29,26.72]
[1755196055012,5.171433,193.37,193.34,13.19800247]
[1755196055209,13.19800247,193.41,193.35,13.19800247]
[1755196055402,13.19800247,193.41,193.31,0.72]
[1755196055720,13.19800247,193.41,193.36,13.19800247]
[1755196055721,5.17036347,193.41,193.36,13.19800247]
[1755196055884,5.88036347,193.41,193.36,13.19800247]
[1755196056086,5.17036347,193.41,193.37,13.19800247]
[1755196057108,5.17009616,193.42,193.37,13.19800247]
[1755196057512,0.71,193.41,193.33,26.0]
[1755196057812,13.19800247,193.38,193.32,13.19800247]
[1755196058189,0.71,193.38,193.33,13.19800247]
[1755196058389,0.71,193.37,193.33,13.19800247]
[1755196058903,0.77,193.4,193.34,13.19800247]
[1755196059097,0.77,193.4,193.36,13.19800247]
[1755196059098,5.17089818,193.39,193.36,13.19800247]
[1755196059727,0.06,193.4,193.38,13.19800247]
[1755196060097,5.17009616,193.42,193.38,13.19800247]
[1755196060620,0.06,193.43,193.4,13.19800247]
[1755196060926,0.06,193.41,193.39,13.19800247]
[1755196061626,0.06,193.41,193.4,13.91800247]
[1755196063725,0.06,193.41,193.4,75.19484885]
[1755196063922,0.06,193.41,193.4,54.91800247]
[1755196064099,0.06,193.41,193.4,41.0]
[1755196064299,0.06,193.41,193.37,13.19800247]
[1755196064511,0.06,193.41,193.38,13.19800247]
[1755196064696,0.06,193.41,193.39,13.19800247]
[1755196064907,0.06,193.41,193.36,13.19800247]
[1755196065124,0.77,193.41,193.36,13.19800247]
[1755196065423,5.17063081,193.4,193.36,13.19800247]
[1755196065638,32.00521032,193.4,193.35,41.0]
[1755196066228,5.17063081,193.4,193.36,13.19800247]
[1755196066424,5.17063081,193.4,193.35,54.19800247]
[1755196066613,5.17063081,193.4,193.35,41.0]
[1755196066614,18.36863328,193.4,193.35,41.0]
[1755196066808,5.17063081,193.4,193.37,13.19800247]
[1755196067013,0.06,193.41,193.39,13.19800247]
[1755196067223,0.06,193.41,193.4,13.19800247]
[1755196067426,0.06,193.41,193.4,13.91800247]
[1755196068517,0.06,193.41,193.4,20.99684638]
[1755196068730,0.06,193.41,193.4,60.19484885]
[1755196068915,0.06,193.41,193.4,41.82621557]
[1755196069126,0.06,193.41,193.4,55.02421804]
[1755196069411,0.06,193.41,193.4,60.19484885]
[1755196070208,0.06,193.41,193.4,41.82621557]
[1755196070408,0.06,193.41,193.4,55.02421804]
[1755196070709,0.06,193.41,193.4,60.19484885]
[1755196071929,0.06,193.41,193.4,39.91800247]
[1755196072229,0.06,193.41,193.4,39.19800247]
[1755196073137,0.06,193.41,193.4,39.91800247]
[1755196073941,0.06,193.41,193.39,13.19800247]
[1755196074437,0.06,193.41,193.38,13.19800247]
[1755196074609,0.06,193.41,193.37,54.15800247]
[1755196074805,0.06,193.41,193.38,13.19800247]
[1755196075005,0.71,193.4,193.35,13.19800247]
[1755196075235,13.90800247,193.4,193.35,13.22800247]
[1755196075437,0.71,193.4,193.35,0.03]
[1755196075606,5.17063081,193.4,193.36,13.19800247]
[1755196075811,5.17063081,193.4,193.35,0.03]
[1755196075812,5.17063081,193.4,193.35,0.75]
[1755196076016,0.71,193.39,193.35,13.22800247]
[1755196076213,0.71,193.38,193.35,0.03]
[1755196076524,0.71,193.38,193.35,13.22800247]
[1755196077038,0.71,193.37,193.35,0.03]
[1755196077616,13.19800247,193.39,193.35,0.03]
[1755196077922,0.71,193.39,193.35,0.03]
[1755196078135,13.90800247,193.38,193.35,0.03]
[1755196078318,13.19800247,193.36,193.35,0.03]
[1755196078518,13.90800247,193.36,193.35,0.03]
[1755196079439,0.71,193.36,193.35,0.03]
[1755196079651,13.90800247,193.36,193.35,0.03]
[1755196079822,5.88170045,193.36,193.35,0.03]
[1755196080641,19.07970292,193.36,193.35,0.03]
[1755196081035,5.88170045,193.36,193.35,0.03]
[1755196081237,5.17170045,193.36,193.35,0.03]
[1755196081552,18.36938754,193.38,193.35,0.03]
[1755196081748,5.17089818,193.39,193.35,13.22800247]
[1755196082061,0.69,193.38,193.35,0.03]
[1755196082419,18.09814364,193.39,193.35,0.03]
[1755196082632,31.98614611,193.39,193.35,0.03]
[1755196082845,13.88800247,193.38,193.35,0.03]
[1755196083277,13.19800247,193.36,193.35,0.03]
[1755196083541,13.88800247,193.36,193.35,0.03]
[1755196083747,19.05970292,193.36,193.35,1e-08]
[1755196083965,47.09516962,193.36,193.29,0.03]
[1755196084261,13.19800247,193.3,193.29,0.03]
[1755196084958,13.88800247,193.3,193.29,0.03]
[1755196085859,19.06130821,193.3,193.29,0.03]
[1755196088453,5.86330574,193.3,193.29,0.03]
[1755196088835,5.17330574,193.3,193.29,0.03]
[1755196089044,19.06130821,193.3,193.29,0.03]
[1755196089360,18.37130821,193.3,193.29,0.03]
[1755196090230,5.17309273,193.31,193.29,0.03]
[1755196090932,13.68682601,193.31,193.29,0.03]
[1755196091133,5.17309273,193.31,193.29,0.03]
[1755196091447,26.0,193.35,193.3,0.67]
[1755196091759,8.51373328,193.33,193.29,0.03]
[1755196091967,5.17330574,193.3,193.29,0.03]
[1755196094072,13.68623625,193.33,193.29,0.7]
[1755196094363,5.17170045,193.36,193.31,8.51373328]
[1755196094662,5.17170045,193.36,193.32,0.67]
[1755196095239,5.17170045,193.36,193.33,9.18373328]
[1755196095645,5.17170045,193.36,193.31,8.51373328]
[1755196095961,5.17170045,193.36,193.3,0.67]
[1755196095962,8.51373328,193.39,193.33,8.51373328]
[1755196096146,8.51373328,193.39,193.32,0.67]
[1755196096147,8.51373328,193.39,193.32,9.18373328]
[1755196096346,5.17116558,193.38,193.32,9.18373328]
[1755196096749,0.06,193.41,193.36,8.51373328]
[1755196097067,0.06,193.41,193.37,0.67]
[1755196097648,5.17063081,193.4,193.38,0.67]
[1755196097852,5.17063081,193.4,193.39,0.67]
[1755196098060,0.06,193.41,193.36,0.67]
[1755196098263,8.57373328,193.41,193.36,0.67]
[1755196098469,0.06,193.41,193.37,0.67]
[1755196098646,0.06,193.41,193.36,8.51373328]
[1755196098846,0.06,193.41,193.38,0.67]
[1755196099146,9.26373328,193.41,193.35,8.51373328]
[1755196099347,8.51373328,193.38,193.34,0.67]
[1755196099547,8.51373328,193.39,193.34,0.67]
[1755196100044,5.171433,193.37,193.33,8.51373328]
[1755196100244,5.171433,193.37,193.33,0.67]
[1755196100963,26.61374879,193.37,193.31,8.51373328]
[1755196101172,8.51373328,193.35,193.29,0.7]
[1755196101746,8.51373328,193.34,193.29,0.7]
[1755196101945,8.51373328,193.32,193.29,0.03]
[1755196102162,5.17303812,193.31,193.29,0.03]
[1755196103051,47.44314806,193.36,193.3,9.18373328]
[1755196103372,38.92941478,193.36,193.31,8.51373328]
[1755196103568,0.06,193.41,193.34,8.51373328]
[1755196103569,9.26373328,193.41,193.34,8.51373328]
[1755196103974,5.17063081,193.4,193.37,8.51373328]
[1755196104159,0.06,193.41,193.37,8.51373328]
[1755196104355,0.75,193.41,193.36,8.51373328]
[1755196104761,0.75,193.41,193.37,8.51373328]
[1755196105070,0.75,193.41,193.35,9.18373328]
[1755196105442,9.26373328,193.41,193.35,9.18373328]
[1755196105654,9.26373328,193.41,193.29,0.03]
[1755196105655,8.51373328,193.39,193.32,9.18373328]
[1755196105851,8.51373328,193.39,193.29,0.7]
[1755196105852,8.51373328,193.34,193.29,0.7]
[1755196106055,26.61374879,193.37,193.29,0.7]
[1755196106258,8.51373328,193.36,193.3,0.67]
[1755196106556,8.51373328,193.36,193.3,9.18373328]
[1755196107089,8.51373328,193.35,193.3,0.67]
[1755196107273,8.51373328,193.35,193.29,8.54373328]
[1755196107274,9.20373328,193.35,193.29,8.54373328]
[1755196107472,9.20373328,193.35,193.29,0.03]
[1755196107650,8.51373328,193.34,193.29,0.03]
[1755196108460,5.17250297,193.33,193.29,0.03]
[1755196108972,5.17250297,193.33,193.29,8.54373328]
[1755196109156,5.17250297,193.33,193.3,0.67]
[1755196109546,5.17250297,193.33,193.31,0.67]
[1755196110348,5.17223544,193.34,193.29,0.03]
[1755196110557,13.68596872,193.34,193.29,0.03]
[1755196110774,14.37596872,193.34,193.29,0.03]
[1755196111359,0.69,193.33,193.29,0.03]
[1755196111555,5.86277053,193.32,193.29,0.03]
[1755196111764,8.51373328,193.31,193.29,0.03]
[1755196112076,9.20373328,193.3,193.29,0.03]
[1755196112275,9.20373328,193.3,193.29,1e-08]
[1755196113253,9.20373328,193.3,193.25,0.03]
[1755196113254,41.10621557,193.29,193.25,0.03]
[1755196113553,24.30994885,193.3,193.23,0.03]
[1755196113554,5.17491202,193.24,193.23,1e-08]
[1755196113757,29.48486087,193.24,193.23,1e-08]
[1755196114155,20.28112759,193.24,193.23,1e-08]
[1755196114478,14.3786453,193.24,193.23,1e-08]
[1755196114978,15.10621557,193.23,193.22,1e-08]
[1755196115287,15.7596283,193.24,193.22,1e-08]
[1755196115575,5.17491202,193.24,193.22,1e-08]
[1755196115775,8.51373328,193.23,193.22,1e-08]
[1755196116180,13.6886453,193.24,193.22,1e-08]
[1755196116680,5.17491202,193.24,193.22,1e-08]
[1755196116880,5.17491202,193.24,193.22,0.68000001]
[1755196117062,5.17491202,193.24,193.22,1e-08]
[1755196117457,13.6886453,193.24,193.22,1e-08]
[1755196117874,5.17491202,193.24,193.22,1e-08]
[1755196118062,12.93572357,193.27,193.22,0.68000001]
[1755196118257,5.17410875,193.27,193.22,9.19373329]
[1755196118659,13.68784203,193.27,193.22,1e-08]
[1755196118862,5.17410875,193.27,193.23,9.19373328]
[1755196119072,13.68762567,193.28,193.25,8.51373328]
[1755196119288,5.17303812,193.31,193.26,0.68]
[1755196119470,5.17303812,193.31,193.26,9.19373328]
[1755196119785,13.6867714,193.31,193.24,0.68]
[1755196119981,13.6867714,193.31,193.25,8.51373328]
[1755196120180,13.6867714,193.31,193.24,0.68]
[1755196120382,13.6867714,193.31,193.25,8.51373328]
[1755196120584,13.6867714,193.31,193.22,1e-08]
[1755196120585,5.17303812,193.31,193.26,0.68]
[1755196120767,5.17303812,193.31,193.27,0.68]
[1755196120966,5.17303812,193.31,193.28,0.68]
[1755196121163,5.17303812,193.31,193.25,0.68]
[1755196121487,5.17303812,193.31,193.27,8.51373328]
[1755196121678,8.51373328,193.3,193.25,0.68]
[1755196121867,15.10621557,193.31,193.22,1e-08]
[1755196121868,8.51373328,193.27,193.22,1e-08]
[1755196122264,8.51373328,193.27,193.22,0.68000001]
[1755196122487,50.00373328,193.29,193.23,0.68]
[1755196122784,40.8,193.29,193.24,8.51373328]
[1755196122994,40.8,193.29,193.25,9.19373328]
[1755196123201,44.10513422,193.32,193.27,8.51373328]
[1755196123365,5.17277053,193.32,193.27,8.51373328]
[1755196123690,5.17223544,193.34,193.3,8.51373328]
[1755196123899,5.17223544,193.34,193.3,9.19373328]
[1755196124465,5.17223544,193.34,193.31,0.68]
[1755196125661,0.06,193.34,193.31,9.19373328]
[1755196126073,0.06,193.34,193.31,0.68]
[1755196126274,0.06,193.34,193.27,0.68]
[1755196126508,0.06,193.34,193.29,8.51373328]
[1755196127096,8.51373328,193.32,193.26,0.68]
[1755196127295,8.51373328,193.31,193.23,0.68]
[1755196127496,8.51373328,193.31,193.24,8.51373328]
[1755196127703,5.17330574,193.3,193.24,8.51373328]
[1755196127878,8.51373328,193.29,193.23,9.19373328]
[1755196128071,8.51373328,193.27,193.22,1e-08]
[1755196128278,8.51373328,193.26,193.22,1e-08]
[1755196128492,9.20373328,193.27,193.22,1e-08]
[1755196129384,0.69,193.26,193.22,1e-08]
[1755196129589,9.20373328,193.26,193.22,1e-08]
[1755196129793,5.17464424,193.25,193.22,1e-08]
[1755196131802,12.93565718,193.27,193.22,1e-08]
[1755196132001,0.69,193.26,193.22,1e-08]
[1755196132191,8.51373328,193.24,193.22,1e-08]
[1755196132388,9.20373328,193.25,193.22,1e-08]
[1755196132576,2.070769,193.26,193.22,0.68000001]
[1755196132780,31.86384105,193.28,193.22,0.68000001]
[1755196132781,40.37757433,193.28,193.22,9.19373329]
[1755196132980,42.44802133,193.28,193.22,9.19373329]
[1755196133392,5.86384105,193.28,193.22,9.19373329]
[1755196133597,5.17384105,193.28,193.23,8.51373328]
[1755196133918,21.44514414,193.33,193.24,0.68]
[1755196134283,21.44514414,193.33,193.27,8.51373328]
[1755196134987,5.17277053,193.32,193.27,8.51373328]
[1755196135492,5.86277053,193.32,193.26,9.19373328]
[1755196136088,5.17277053,193.32,193.26,9.19373328]
[1755196136295,5.17277053,193.32,193.28,8.51373328]
[1755196136481,5.17277053,193.32,193.28,9.19373328]
[1755196136679,5.17277053,193.32,193.28,0.68]
[1755196137077,26.61843014,193.32,193.25,0.68]
[1755196137306,9.20373328,193.31,193.24,34.51373328]
[1755196137702,0.06,193.34,193.29,8.51373328]
[1755196138005,0.06,193.34,193.33,8.51373328]
[1755196138311,0.06,193.34,193.33,9.19373328]
[1755196138514,0.06,193.34,193.32,8.51373328]
[1755196138886,0.06,193.34,193.33,9.19373328]
[1755196140409,0.06,193.34,193.33,14.36623625]
[1755196140622,0.06,193.34,193.33,29.47245182]
[1755196140785,0.06,193.34,193.33,60.55245182]
[1755196141717,0.06,193.34,193.33,14.36623625]
[1755196144637,0.06,193.34,193.33,9.19373328]
[1755196145630,0.06,193.34,193.33,34.51373328]
[1755196145836,0.06,193.34,193.33,35.16373328]
[1755196146134,0.06,193.34,193.33,26.65]
[1755196146423,0.06,193.34,193.33,35.16373328]
[1755196146638,0.06,193.34,193.33,40.33623625]
[1755196147159,0.06,193.34,193.33,29.44245182]
[1755196147627,0.06,193.34,193.33,46.92871854]
[1755196147801,0.06,193.34,193.33,29.44245182]
[1755196148634,0.06,193.34,193.33,9.16373328]
[1755196149032,0.06,193.34,193.33,14.33623625]
[1755196151332,0.06,193.34,193.33,81.13623625]
[1755196151537,0.06,193.36,193.35,58.13368213]
[1755196151721,0.06,193.38,193.36,15.10621557]
[1755196151926,0.06,193.38,193.37,35.16373328]
[1755196152124,0.06,193.38,193.37,50.26994885]
[1755196152328,0.06,193.4,193.38,41.10621557]
[1755196152527,0.06,193.4,193.39,64.88994885]
[1755196153032,0.06,193.4,193.39,64.23994885]
[1755196153226,0.06,193.4,193.39,64.88994885]
[1755196153639,0.06,193.44,193.42,56.63621557]
[1755196153938,0.06,193.44,193.43,15.10621557]
[1755196154237,5.26697449,193.54,193.46,31.16892893]
[1755196154438,0.66,193.52,193.43,15.75621557]
[1755196154667,0.66,193.52,193.43,5.81981671]
[1755196154831,9.17373328,193.52,193.46,34.51373328]
[1755196155441,0.66,193.51,193.46,8.51373328]
[1755196155829,0.66,193.51,193.44,40.6]
[1755196156031,8.51373328,193.49,193.37,0.65]
[1755196156228,5.16876001,193.47,193.42,8.51373328]
[1755196156430,0.66,193.46,193.42,8.51373328]
[1755196156644,0.66,193.45,193.42,8.51373328]
[1755196156844,0.66,193.45,193.43,8.51373328]
[1755196157237,0.66,193.44,193.42,26.0]
[1755196157946,0.66,193.44,193.41,26.0]
[1755196158246,5.16849286,193.48,193.41,26.0]
[1755196158447,0.66,193.43,193.41,8.51373328]
[1755196158637,0.66,193.42,193.41,8.51373328]
[1755196158953,0.66,193.45,193.41,8.51373328]
[1755196159251,0.66,193.44,193.41,8.51373328]
[1755196159424,8.51373328,193.47,193.41,8.51373328]
[1755196159624,0.66,193.43,193.41,8.51373328]
[1755196160352,5.83009616,193.42,193.39,8.51373328]
[1755196160657,0.66,193.41,193.39,8.51373328]
[1755196160844,5.83009616,193.42,193.39,8.51373328]
[1755196161032,5.83009616,193.42,193.38,66.56]
[1755196161234,5.83009616,193.42,193.39,8.51373328]
[1755196162050,5.83043477,193.41,193.38,75.07373328]
[1755196162352,0.66,193.4,193.38,75.07373328]
[1755196162548,5.17043477,193.41,193.38,40.56]
[1755196162741,0.66,193.39,193.34,8.51373328]
[1755196163048,8.51373328,193.36,193.3,8.51373328]
[1755196163233,9.17373328,193.35,193.29,8.51373328]
[1755196163425,0.66,193.34,193.29,8.51373328]
[1755196163624,0.66,193.34,193.24,41.19]
[1755196163830,8.51373328,193.33,193.26,8.51373328]
[1755196164154,14.34650381,193.32,193.26,8.51373328]
[1755196164356,8.51373328,193.31,193.25,8.51373328]
[1755196164724,9.17373328,193.31,193.25,8.51373328]
[1755196164928,0.66,193.31,193.26,8.51373328]
[1755196165224,5.17277053,193.32,193.24,41.19]
[1755196165448,0.66,193.31,193.25,8.51373328]
[1755196165929,0.66,193.31,193.24,40.54]
[1755196166131,0.66,193.34,193.3,8.51373328]
[1755196166647,5.17196793,193.35,193.32,8.51373328]
[1755196166847,5.17196793,193.35,193.28,40.54]
[1755196167053,5.83196793,193.35,193.3,8.51373328]
[1755196167360,0.66,193.34,193.27,8.51373328]
[1755196167569,8.51373328,193.32,193.26,8.51373328]
[1755196167740,0.66,193.31,193.27,8.51373328]
[1755196167932,8.51373328,193.34,193.25,40.54]
[1755196168254,18.10188776,193.35,193.25,40.54]
[1755196168255,5.17330574,193.3,193.27,8.51373328]
[1755196168930,5.17330574,193.3,193.24,40.55]
[1755196169263,5.17223544,193.34,193.27,8.51373328]
[1755196169435,0.66,193.33,193.28,8.51373328]
[1755196169629,0.66,193.32,193.28,8.51373328]
[1755196169834,5.17223544,193.34,193.3,8.51373328]
[1755196170045,0.66,193.34,193.3,8.51373328]
[1755196170258,0.66,193.34,193.28,0.65]
[1755196170464,0.66,193.34,193.3,8.51373328]
[1755196170838,9.20373328,193.33,193.27,8.51373328]
[1755196171141,9.20373328,193.32,193.26,8.51373328]
[1755196171456,0.69,193.32,193.27,8.51373328]
[1755196171754,0.69,193.31,193.27,8.51373328]
[1755196172253,5.86318411,193.31,193.27,8.51373328]
[1755196172437,0.69,193.3,193.27,8.51373328]
[1755196172764,0.69,193.3,193.24,41.26]
[1755196172932,0.69,193.3,193.27,8.51373328]
[1755196173139,0.69,193.29,193.25,8.51373328]
[1755196173346,5.17318411,193.31,193.25,8.51373328]
[1755196173347,0.69,193.28,193.25,8.51373328]
[1755196173546,0.69,193.28,193.24,49.06373328]
[1755196174033,5.86318411,193.31,193.26,8.51373328]
[1755196174237,0.69,193.3,193.26,8.51373328]
[1755196174534,5.86318411,193.31,193.27,8.51373328]
[1755196174733,0.69,193.34,193.29,8.51373328]
[1755196175366,5.17223544,193.34,193.3,8.51373328]
[1755196175979,5.171433,193.37,193.33,8.51373328]
[1755196176259,5.861433,193.37,193.33,8.51373328]
[1755196176841,5.171433,193.37,193.33,8.51373328]
[1755196177235,5.171433,193.37,193.34,8.51373328]
[1755196178333,5.17116558,193.38,193.33,8.51373328]
[1755196178547,5.17116558,193.38,193.29,40.48]
[1755196178548,0.69,193.37,193.32,8.51373328]
[1755196179048,0.69,193.36,193.32,8.51373328]
[1755196179577,0.69,193.35,193.29,48.99373328]
[1755196180276,9.20373328,193.35,193.29,48.99373328]
[1755196180455,5.17223544,193.34,193.29,48.99373328]
[1755196180655,0.69,193.33,193.29,40.48]
[1755196181377,9.20373328,193.32,193.27,0.03]
[1755196181681,0.69,193.31,193.27,0.03]
[1755196181881,27.30655732,193.34,193.27,8.54373328]
[1755196182083,5.86223544,193.34,193.29,8.51373328]
[1755196182780,5.17198487,193.35,193.32,8.51373328]
[1755196182955,5.17174862,193.36,193.33,8.51373328]
[1755196183148,5.86174862,193.36,193.31,8.51373328]
[1755196184461,0.69,193.35,193.3,8.51373328]
[1755196184859,5.86223544,193.34,193.28,0.71]
[1755196185055,5.86223544,193.34,193.29,8.51373328]
[1755196185883,0.69,193.33,193.27,40.49]
[1755196186182,0.69,193.33,193.29,8.51373328]
[1755196186350,0.69,193.33,193.27,40.49]
[1755196186554,9.20373328,193.33,193.27,49.00373328]
[1755196186884,5.17277053,193.32,193.27,49.00373328]
[1755196187373,5.86277053,193.32,193.27,49.00373328]
[1755196187966,14.37650381,193.32,193.27,40.49]
[1755196188169,0.69,193.31,193.27,40.49]
[1755196188476,13.68650381,193.32,193.27,0.03]
[1755196188477,0.69,193.3,193.27,0.03]
[1755196188888,9.20373328,193.33,193.27,9.25373328]
[1755196189181,5.17223544,193.34,193.3,8.51373328]
[1755196189571,31.17201187,193.35,193.31,0.71]
[1755196189995,31.86201187,193.35,193.3,8.51373328]
[1755196190177,5.17174361,193.36,193.3,0.71]
[1755196190385,5.17174361,193.36,193.32,8.51373328]
[1755196190761,5.86174361,193.36,193.31,8.51373328]
[1755196191187,5.86174361,193.36,193.31,9.22373328]
[1755196191390,5.17174361,193.36,193.31,9.22373328]
[1755196191568,5.17174361,193.36,193.32,9.22373328]
[1755196191766,5.17174361,193.36,193.32,0.71]
[1755196192071,5.17174361,193.36,193.33,8.51373328]
[1755196192272,5.17141158,193.38,193.34,8.51373328]
[1755196192478,5.86141158,193.38,193.34,8.51373328]
[1755196192875,5.17141158,193.38,193.35,8.51373328]
[1755196193078,5.17141158,193.38,193.35,9.22373328]
[1755196193282,5.17141158,193.38,193.34,8.51373328]
[1755196193488,0.69,193.37,193.3,0.71]
[1755196193669,0.69,193.37,193.32,8.51373328]
[1755196193989,0.69,193.36,193.31,8.51373328]
[1755196194370,26.61305881,193.38,193.32,8.51373328]
[1755196194576,18.09932553,193.38,193.33,8.51373328]
[1755196194885,18.78932553,193.38,193.33,8.51373328]
[1755196195382,5.86141158,193.38,193.33,9.22373328]
[1755196195885,0.69,193.37,193.33,8.51373328]
[1755196196092,0.69,193.37,193.32,8.51373328]
[1755196196386,9.20373328,193.36,193.3,8.51373328]
[1755196196784,0.69,193.36,193.31,8.51373328]
[1755196197290,5.17196793,193.35,193.31,8.51373328]
[1755196198958,5.86196793,193.35,193.3,8.51373328]
[1755196199368,0.69,193.34,193.29,8.51373328]
[1755196199588,9.20373328,193.34,193.28,8.51373328]
[1755196200163,8.51373328,193.33,193.27,0.74]
[1755196200362,8.51373328,193.28,193.27,0.03]
[1755196200682,26.0,193.26,193.25,1e-08]
[1755196200860,90.63994885,193.26,193.24,1e-08]
[1755196201059,24.29994885,193.25,193.24,1e-08]
[1755196201288,29.47459309,193.25,193.24,1e-08]
[1755196201489,5.17464424,193.25,193.24,1e-08]
[1755196201891,5.17410875,193.27,193.24,1e-08]
[1755196202274,31.17389951,193.28,193.24,9.23373329]
[1755196202476,25.8584106,193.37,193.27,8.51373328]
[1755196202477,26.0,193.32,193.27,8.51373328]
[1755196202792,5.17250297,193.33,193.29,8.51373328]
[1755196202985,4.27808397,193.43,193.24,1e-08]
[1755196202986,0.68,193.38,193.3,9.23373328]
[1755196203294,5.171433,193.37,193.33,8.51373328]
[1755196203494,5.17089818,193.39,193.33,9.23373328]
[1755196203671,5.17089818,193.39,193.34,8.51373328]
[1755196203868,13.68463146,193.39,193.33,9.23373328]
[1755196204067,14.36463146,193.39,193.33,9.23373328]
[1755196204265,5.85089818,193.39,193.34,8.51373328]
[1755196204489,5.17036347,193.41,193.37,8.51373328]
[1755196204713,5.16982887,193.43,193.39,8.51373328]
[1755196204889,5.22957441,193.44,193.41,8.51373328]
[1755196205063,5.22957441,193.44,193.42,8.51373328]
[1755196205394,0.06,193.44,193.43,9.23373328]
[1755196205579,0.06,193.46,193.45,26.0]
[1755196205775,0.06,193.48,193.47,8.51373328]
[1755196205973,0.06,193.48,193.47,9.23373328]
[1755196206173,0.06,193.48,193.47,0.72]
[1755196206366,0.06,193.48,193.44,0.72]
[1755196206571,0.06,193.48,193.44,9.23373328]
[1755196206999,0.06,193.48,193.46,8.51373328]
[1755196207300,0.06,193.48,193.45,8.51373328]
[1755196207510,0.06,193.48,193.44,8.51373328]
[1755196207669,8.57373328,193.48,193.42,8.51373328]
[1755196207872,0.68,193.47,193.41,0.72]
[1755196208209,0.68,193.47,193.36,20.2779119]
[1755196208210,8.51373328,193.44,193.38,8.51373328]
[1755196208416,9.19373328,193.43,193.36,48.81373328]
[1755196208614,8.51373328,193.42,193.36,8.51373328]
[1755196208800,0.68,193.43,193.36,8.51373328]
[1755196209002,26.0,193.44,193.36,8.51373328]
[1755196209173,8.51373328,193.43,193.35,0.72]
[1755196209378,8.51373328,193.41,193.35,9.23373328]
[1755196209578,5.17063081,193.4,193.35,9.23373328]
[1755196210406,5.17063081,193.4,193.35,8.51373328]
[1755196210407,5.85063081,193.4,193.35,8.51373328]
[1755196210821,5.17063081,193.4,193.35,8.51373328]
[1755196210970,9.19373328,193.39,193.32,8.51373328]
[1755196211170,0.68,193.38,193.29,0.72]
[1755196211522,8.51373328,193.33,193.26,9.23373328]
[1755196211679,5.17277053,193.32,193.27,8.51373328]
[1755196212016,5.17277053,193.32,193.27,9.23373328]
[1755196212510,5.17277053,193.32,193.28,8.51373328]
[1755196212689,5.17277053,193.32,193.28,13.21270336]
[1755196212884,5.17249361,193.34,193.29,13.93270336]
[1755196213189,54.03416547,193.38,193.32,13.21270336]
[1755196213190,5.171433,193.37,193.32,13.21270336]
[1755196213691,5.171433,193.37,193.32,13.93270336]
[1755196214005,5.851433,193.37,193.32,13.21270336]
[1755196214184,0.68,193.36,193.31,13.21270336]
[1755196214377,5.171433,193.37,193.31,13.21270336]
[1755196214583,0.06,193.36,193.35,13.21270336]
[1755196214796,0.06,193.36,193.35,13.93270336]
[1755196215606,0.06,193.36,193.35,19.10467129]
[1755196215783,0.06,193.36,193.35,34.21088686]
[1755196215982,0.06,193.36,193.35,26.72]
[1755196216187,0.06,193.36,193.35,39.93270336]
[1755196216404,0.06,193.36,193.35,80.17270336]
[1755196217306,0.06,193.36,193.32,2.068841]
[1755196217506,0.06,193.36,193.35,13.21270336]
[1755196217705,0.06,193.36,193.34,13.21270336]
[1755196217896,0.06,193.36,193.35,13.21270336]
[1755196218091,0.06,193.36,193.35,13.93270336]
[1755196218398,0.06,193.36,193.35,0.72]
[1755196218594,0.06,193.36,193.35,13.93270336]